Cogmind - Beta 10.2 @@@ ROGUE MODE // 2021.06.05 @ 00:08:51 Player: CrossedViper Result: Destroyed by G-67 Veteran with Plasma Rifle Performance ------------- Evolutions (6) 3000 Regions Visited (18) 3600 Robots Destroyed (197) 985 Value Destroyed (8069) 8069 Prototype IDs (40) 800 Alien Tech Used (0) 0 Bonus (3996) 3996 TOTAL SCORE: 20450 Bonus ------- High Alert Combat Kills 837 Follower Combat Kills 230 Entered Garrisons 800 Used RIF Installer 2000 Aligned with FarCom 300 Friendly Fire -171 Cogmind --------- Core Integrity 0/1150 Matter 118/300 Energy 11/100 System Corruption 6% Temperature Cool (15) Movement Flying (32) Location -4/Factory Parts ------- > --- POWER (2) -------- (None) > --- PROPULSION (6) --- Faulty Cooled Cesium-ion Thruster Cooled Cesium-ion Thruster > --- UTILITY (8) ------ Improved Medium Armor Plating Relay Coupler [Swarmer] (36) Relay Coupler [Swarmer] (33) Relay Coupler [Brawler] (35) Relay Coupler [Sentry] (4) > --- WEAPON (3) ------- (None) > --- INVENTORY (4) ---- Nanoactuators Relay Coupler [NC] (35) Relay Coupler [NC] (31) Improved Remote Datajack Peak State ------------ > --- POWER ------------ Micro Fission Core Micro Fission Core > --- PROPULSION ------- Nuclear Pulse Thruster Nuclear Pulse Thruster Nuclear Pulse Thruster Nuclear Pulse Thruster Nuclear Pulse Thruster Nuclear Pulse Thruster > --- UTILITY ---------- Advanced Heat Sink Large Storage Unit Nanoactuators Nanoactuators System Shield Relay Coupler [Swarmer] Relay Coupler [Duelist] Relay Coupler [Sentry] > --- WEAPON ----------- Phase Gun Phase Gun Neutron Missile Launcher > --- INVENTORY -------- Nuclear Pulse Thruster Nanoactuators Relay Coupler [NC] Relay Coupler [NC] Relay Coupler [Swarmer] Relay Coupler [Brawler] Phase Gun Long-range Missile Launcher Improved Remote Datajack [Rating: 100] Favorites ----------- Power Micro Fission Core Engine Ion Engine Power Core Micro Fission Core Propulsion Light Treads Treads Light Treads Leg Improved Titanium Leg Wheel Armored Huge Wheel Hover Unit Antigrav System Flight Unit VTOL Module Utility Large Storage Unit Device Advanced Heat Sink Storage Large Storage Unit Processor Advanced Launcher Guidance Computer Hackware Relay Coupler [Swarmer] Protection Light Armor Plating Weapon Flak Gun Energy Gun Enhanced Force Rifle Energy Cannon Cooled Particle Cannon Ballistic Gun Flak Gun Ballistic Cannon Heavy Flak Cannon Launcher Mini Grenade Launcher Special Weapon Improved Remote Datajack Impact Weapon Hammer Piercing Weapon Spear Build | -11 -10 -10 -10 -9 -8 -8 -8 -7 -7 -7 -6 -5 -5 -5 -5 -5 -5 -4 ------- Run | Scr Mat Min Exi Min Mat Gar Mat Fac Sto Gar Fac Fac Was Fac Gar Fac Gar Fac Slots Evolved 12 | . . . . . 4 . . 2 . . 2 2 . . . . . 2 Power 1 | . . . . . . . . . . . . 1 . . . . . . Propulsion 4 | . . . . . 2 . . . . . 2 . . . . . . . Utility 6 | . . . . . 1 . . 2 . . . 1 . . . . . 2 Weapon 1 | . . . . . 1 . . . . . . . . . . . . . Parts Attached 236 | 7 1 1 1 2 15 6 20 7 38 6 14 10 7 9 25 4 36 27 Power 19 | 1 . 1 . . 1 . 1 . 2 . 1 3 . 2 3 . 3 1 Engine 8 | 1 . 1 . . 1 . 1 . 1 . . 2 . 1 . . . . Core 11 | . . . . . . . . . 1 . 1 1 . 1 3 . 3 1 Reactor . | . . . . . . . . . . . . . . . . . . . Propulsion 75 | 3 . . . . 6 1 7 . 17 2 7 1 . 3 8 2 8 10 Treads 31 | 2 . . . . 6 1 7 . 8 . 3 1 . 1 . . 1 1 Leg 9 | . . . . . . . . . . . 3 . . . . 2 4 . Wheel 4 | 1 . . . . . . . . . . 1 . . 2 . . . . Hover 14 | . . . . . . . . . 8 2 . . . . 1 . 3 . Flight 17 | . . . . . . . . . 1 . . . . . 7 . . 9 Utility 49 | 1 1 . 1 . 2 2 3 4 5 1 2 3 1 2 4 1 10 6 Device 13 | . . . . . . . . 2 1 . . 2 . 1 . . 6 1 Storage 6 | 1 . . 1 . . . . . . . 2 . . 1 . . 1 . Processor 1 | . . . . . . . . . . . . . 1 . . . . . Hackware 12 | . . . . . . 1 . . . . . . . . 4 1 2 4 Protection 17 | . 1 . . . 2 1 3 2 4 1 . 1 . . . . 1 1 Artifact . | . . . . . . . . . . . . . . . . . . . Weapon 93 | 2 . . . 2 6 3 9 3 14 3 4 3 6 2 10 1 15 10 Energy Gun 16 | . . . . . 2 . 3 . . . . 3 . . 2 . 4 2 Energy Cannon 5 | . . . . . . . . . 1 1 . . . 1 1 1 . . Ballistic Gun 33 | 2 . . . 1 4 2 4 2 9 . . . . . 3 . 5 1 Ballistic Cannon 7 | . . . . . . . . . . . 3 . 4 . . . . . Launcher 17 | . . . . 1 . 1 2 . 3 2 . . 2 . 2 . 1 3 Special Weapon 4 | . . . . . . . . . . . . . . . 1 . 2 1 Impact Weapon 1 | . . . . . . . . 1 . . . . . . . . . . Slashing Weapon . | . . . . . . . . . . . . . . . . . . . Piercing Weapon 10 | . . . . . . . . . 1 . 1 . . 1 1 . 3 3 Special Melee Weapon . | . . . . . . . . . . . . . . . . . . . Unidentified Prototypes 17 | . . . . . 2 . . . 10 . . 3 . . . . . 2 Parts Lost 87 | . . . . . 7 3 2 1 2 9 . 1 10 . 11 7 11 23 Power 8 | . . . . . 1 . . . . 1 . . 1 . 2 1 . 2 Propulsion 34 | . . . . . 2 2 1 1 . 5 . . . . 4 4 6 9 Utility 22 | . . . . . 3 . . . 2 1 . 1 4 . 2 1 3 5 Weapon 23 | . . . . . 1 1 1 . . 2 . . 5 . 3 1 2 7 Highest Loss Streak 22 | . . . . . 3 2 1 1 1 9 . 1 10 . 7 7 6 22 Average Slot Usage (%) 84 | . 98 100 100 100 84 74 98 96 89 57 74 82 43 42 57 69 90 81 Engine 5 | . 14 14 14 14 6 9 9 7 4 . . 6 4 3 . . . . Core 3 | . . . . . . . . . 2 3 5 4 . 4 5 7 9 8 Treads 16 | . 14 14 14 14 30 32 35 30 23 . 14 11 4 1 1 . 1 . Leg 4 | . . . . . . . . . . . 17 11 5 . . 4 13 5 Wheel 3 | . 14 14 14 14 5 . . . . . 1 5 5 13 4 . . . Hover 2 | . . . . . . . . . 6 23 . . . . 1 . 10 4 Flight 1 | . . . . . . . . . . . . . . . 8 21 1 13 Device 3 | . . . . . . . . 5 6 . . 6 5 1 2 . 12 9 Storage 9 | . 14 14 14 14 9 9 9 7 7 7 18 13 5 4 4 . 4 4 Hackware 3 | . . . . . . . 4 . . . . . . . 4 19 13 19 Protection 6 | . 12 14 14 14 8 . 13 20 13 6 . 2 2 . . . 1 . Energy Gun 2 | . . . . . 3 . 6 . . . . 9 6 . . 1 4 8 Ballistic Gun 13 | . 28 28 28 27 22 16 20 22 22 10 . . . . 7 . 7 . Ballistic Cannon 1 | . . . . . . . . . . . 15 7 1 . . . . . Naked Turns . | . . . . . . . . . . . . . . . . . . . Heaviest Build 112 | 13 16 16 28 30 38 35 50 69 69 67 95 112 105 43 43 17 46 46 Greatest Support 88 | 40 16 16 16 16 83 83 83 80 80 48 88 28 28 66 66 25 48 48 Greatest Overweight (x) 9 | 2 . . 1 1 2 . 1 1 1 1 3 3 3 1 9 . 2 2 Average Overweight (x) . | . . . . 1 1 . . . . . 1 3 . . . . . . Largest Inventory Capacity 24 | 6 6 6 10 10 10 10 10 10 10 10 24 24 18 10 10 4 10 10 Average Capacity 11 | 4 6 6 9 10 10 10 10 10 10 10 22 20 10 9 8 4 9 9 Most Carried 17 | 3 6 6 6 10 10 10 10 10 10 10 15 17 15 5 10 4 10 10 Average Carried 9 | 1 5 5 6 7 8 9 9 10 9 9 10 15 9 3 7 3 9 8 Final Capacity 24 | 6 6 6 10 10 10 10 10 10 10 10 24 18 4 10 4 4 10 4 Final Carried 15 | 3 6 6 6 10 10 9 10 10 10 9 15 15 4 4 4 4 10 4 Class Distribution -------------------- 29% | Mutant 16% | Scavenger-Tank 15% | Tank 11% | Scavenger-Mutant 10% | Hauler-Gunner 4% | Bothacker-Mutant 3% | Gunner 3% | Botlord-Gunner Dominant Class ---------------- Mutant | -10/Materials Mutant | -10/Mines Mutant | -10/Exiles Mutant | -9/Mines Mutant | -8/Materials Mutant | -8/Garrison Tank | -8/Materials Scavenger-Tank | -7/Factory Scavenger-Tank | -7/Storage Mutant | -7/Garrison Hauler-Gunner | -6/Factory Tank | -5/Factory Mutant | -5/Waste Mutant | -5/Factory Scavenger-Gunner | -5/Garrison Scavenger-Mutant | -5/Factory Scavenger-Mutant | -5/Garrison Bothacker-Mutant | -4/Factory Resources | -11 -10 -10 -10 -9 -8 -8 -8 -7 -7 -7 -6 -5 -5 -5 -5 -5 -5 -4 ----------- Run | Scr Mat Min Exi Min Mat Gar Mat Fac Sto Gar Fac Fac Was Fac Gar Fac Gar Fac Matter Collected 6191 | 245 153 10 . 194 652 161 937 329 1072 . 445 561 . 121 293 121 730 167 Remotely . | . . . . . . . . . . . . . . . . . . . Salvage Created 8439 | 24 176 . . 194 1087 272 1635 408 1372 255 445 859 . 115 320 121 726 430 Parts 409 | 4 20 . . 10 45 17 94 20 66 9 7 24 . 6 26 2 40 19 Haulers Intercepted 10 | . . . . . 1 . 4 . 3 . 1 1 . . . . . . Recyclers Shooed 9 | . 1 . . 1 3 . 2 . . . 2 . . . . . . . Parts Field Recycled . | . . . . . . . . . . . . . . . . . . . Retrieved Matter . | . . . . . . . . . . . . . . . . . . . Parts Self-Destructed . | . . . . . . . . . . . . . . . . . . . Prevented . | . . . . . . . . . . . . . . . . . . . Kills | -11 -10 -10 -10 -9 -8 -8 -8 -7 -7 -7 -6 -5 -5 -5 -5 -5 -5 -4 ------- Run | Scr Mat Min Exi Min Mat Gar Mat Fac Sto Gar Fac Fac Was Fac Gar Fac Gar Fac Combat Hostiles Destroyed 147 | . 4 . . 5 13 11 31 8 18 9 3 8 . 1 13 2 15 6 Melee 15 | . . . . . . . . . 1 . . . . 1 4 2 6 1 Guns 90 | . 4 . . 2 13 3 25 8 17 1 . 5 . . 5 . 6 1 Cannons 6 | . . . . . . . . . . . 3 3 . . . . . . AOE 36 | . . . . 3 . 8 6 . . 8 . . . . 4 . 3 4 Classes Destroyed 15 | 1 4 . . 2 3 . 2 . 1 . . 1 . . . . . 1 Worker 11 | . 3 . . . 1 . 2 . 2 . . . . 1 . . . 2 Builder 8 | . 1 . . . 1 . 1 1 2 . . 2 . . . . . . Tunneler 5 | 1 1 . . . . . 3 . . . . . . . . . . . Hauler 10 | . . . . . 1 . 4 . 3 . 1 1 . . . . . . Recycler 10 | . . . . 1 3 . . . 1 . 3 2 . . . . . . Operator 1 | . . . . . . . . . . . . . . . . . . 1 Watcher 4 | . . . . . 2 . 2 . . . . . . . . . . . Swarmer 35 | . 3 . . 3 . 4 7 . . . . . . . 11 . 7 . Grunt 66 | . 1 . . 1 10 7 13 7 9 6 . 6 . . . 2 2 2 Brawler 3 | . . . . 1 . . 1 . . . . 1 . . . . . . Protector 1 | . . . . . . . 1 . . . . . . . . . . . Sentry 29 | . . . . . 3 . 8 1 8 2 1 . . 1 . . 3 2 Hunter 7 | . . . . . . . 1 . . 1 2 . . . . . 2 1 Programmer 6 | . . . . . . . . . 1 . . . . . 2 . 2 1 Behemoth 1 | . . . . . . . . . . . . 1 . . . . . . Best Kill Streak 9 | 1 4 . . 3 6 6 7 3 7 9 2 4 . 1 4 2 3 5 Combat Bots Only 9 | . 3 . . 3 5 6 5 3 4 9 2 3 . 1 4 2 3 4 Max Kills in Single Turn 4 | 1 1 . . 2 2 3 3 1 2 2 1 2 . 1 3 1 4 2 Gunslinging 1 | . . . . . 1 . 1 . . . . . . . . . . . Exploded 3 | . . . . 2 . 3 3 . . 2 . . . . 3 . 3 2 Melee 1 | . . . . . . . . . 1 . . . . 1 1 1 1 1 Uniques/NPCs Destroyed . | . . . . . . . . . . . . . . . . . . . Combat | -11 -10 -10 -10 -9 -8 -8 -8 -7 -7 -7 -6 -5 -5 -5 -5 -5 -5 -4 -------- Run | Scr Mat Min Exi Min Mat Gar Mat Fac Sto Gar Fac Fac Was Fac Gar Fac Gar Fac Damage Taken 14950 | . 88 . . 99 1101 366 1604 601 1427 1230 739 931 566 . 1441 223 1742 2792 Core 2788 | . 10 . . 21 128 14 257 34 98 350 8 54 93 . 228 58 271 1164 Absorbed by Shields . | . . . . . . . . . . . . . . . . . . . Core Remaining (%) 62 | 100 . . . 87 . . 27 . . 31 99 . . . . . 29 . Volleys Fired 464 | 1 19 . 4 22 82 20 89 19 54 8 18 29 14 3 27 4 32 19 Largest 3 | 2 2 . 1 2 3 3 3 3 3 3 3 3 3 1 3 1 3 3 Hottest 264 | 40 40 . 20 40 90 69 112 84 84 86 159 243 243 30 69 30 264 257 Shots Fired 1078 | 2 38 . 4 40 194 37 234 55 145 12 48 87 30 3 62 4 55 28 Gun 916 | 2 38 . 4 36 194 26 230 55 145 4 . 48 24 . 53 . 39 18 Cannon 108 | . . . . . . . . . . 2 48 39 5 3 7 4 . . Launcher 34 | . . . . 4 . 11 4 . . 6 . . 1 . 2 . 1 5 Special 20 | . . . . . . . . . . . . . . . . . 15 5 Kinetic 840 | 2 38 . 4 36 179 26 171 55 145 4 48 39 5 . 53 . 32 3 Thermal 169 | . . . . . . . 59 . . 2 . 48 24 3 7 4 7 15 Explosive 34 | . . . . 4 . 11 4 . . 6 . . 1 . 2 . 1 5 Electromagnetic 15 | . . . . . 15 . . . . . . . . . . . . . Robot Hit Streak 17 | 2 6 . . 10 14 9 10 13 11 9 13 17 6 . 4 . 6 14 Robot Miss Streak 7 | . 1 . . 3 4 2 5 4 7 4 6 5 2 . 6 . 3 4 Penetration Max . | . . . . . . . . . . . . . . . . . . . Secondary Targets 24 | . . . . . 3 . 12 2 3 . . . . . 3 . 1 . Max Gunslinging Chain 2 | . . . . . 1 . 2 1 1 . . . . . 1 . 1 . Shots Hit Robots 812 | 2 14 . . 28 134 26 161 51 120 7 45 71 24 3 31 5 52 38 Core Hits 554 | 1 9 . . 9 48 21 98 46 124 38 38 46 3 3 19 4 27 20 Critical Hits 18 | . . . . . 2 . 2 . 1 . . 8 3 . 1 . 1 . Critical Kills 5 | . . . . . 1 . 1 . . . . 2 . . . . 1 . Critical Parts Destroyed 10 | . . . . . 1 . 1 . 1 . . 6 . . 1 . . . Melee Attacks 99 | . . . . . . . . 3 7 . 1 . . 4 9 10 41 24 Impact 3 | . . . . . . . . 3 . . . . . . . . . . Slashing . | . . . . . . . . . . . . . . . . . . . Piercing 96 | . . . . . . . . . 7 . 1 . . 4 9 10 41 24 Sneak Attacks 4 | . . . . . . . . . . . 1 . . 1 . . . 2 Combat Hostiles . | . . . . . . . . . . . . . . . . . . . Follow-up Attacks . | . . . . . . . . . . . . . . . . . . . Damage Inflicted 20202 | 26 251 . . 524 2001 1054 3210 782 2396 960 913 1994 1061 168 1076 154 1519 2113 Guns 11108 | 26 251 . . 343 2001 329 2706 777 2246 97 . 871 530 . 379 . 328 224 Cannons 2165 | . . . . . . . . . . . 812 1094 189 . 70 . . . Explosions 4753 | . . . . 181 . 725 487 . . 863 . . 342 . 467 . 510 1178 Melee 2118 | . . . . . . . . . 150 . 94 . . 168 160 154 681 711 Ramming 58 | . . . . . . . 17 5 . . 7 29 . . . . . . Kinetic 10493 | 26 251 . . 343 1782 329 1871 777 2246 97 812 1094 189 . 379 . 279 18 Thermal 2561 | . . . . . . . 835 . . . . 871 530 . 70 . 49 206 Explosive 4753 | . . . . 181 . 725 487 . . 863 . . 342 . 467 . 510 1178 Electromagnetic 219 | . . . . . 219 . . . . . . . . . . . . . Impact . | . . . . . . . . . . . . . . . . . . . Slashing . | . . . . . . . . . . . . . . . . . . . Piercing 2118 | . . . . . . . . . 150 . 94 . . 168 160 154 681 711 Highest Corruption 11 | . . . . . . . 4 . 3 3 . . . . 2 8 11 6 Average Corruption 6 | . . . . . . . 3 . 1 3 . . . . 1 4 9 4 Corruption Purged . | . . . . . . . . . . . . . . . . . . . Effects 63 | . . . . . . . 4 . . . . . . . 4 3 46 6 Message Errors 18 | . . . . . . . 1 . . . . . . . 3 . 12 2 Matter Fused 9 | . . . . . . . . . . . . . . . . 1 7 1 Heat Flow Errors 3 | . . . . . . . . . . . . . . . . . 3 . Energy Discharges 5 | . . . . . . . 1 . . . . . . . . 1 3 . Parts Rejected 1 | . . . . . . . . . . . . . . . . . . 1 Data Loss (minor) 7 | . . . . . . . . . . . . . . . . 1 6 . Alerts 1 | . . . . . . . . . . . . . . . . . 1 . Misdirections 2 | . . . . . . . . . . . . . . . . . 2 . Targeting Errors 16 | . . . . . . . 2 . . . . . . . 1 . 11 2 Weapon Failures 1 | . . . . . . . . . . . . . . . . . 1 . Overload Shots . | . . . . . . . . . . . . . . . . . . . Overflow Damage 192 | . . . . 3 . 20 10 . . 14 . . . . 31 . 23 91 Projectiles . | . . . . . . . . . . . . . . . . . . . Explosions 165 | . . . . 3 . 20 10 . . 14 . . . . 31 . . 87 Melee 27 | . . . . . . . . . . . . . . . . . 23 4 Knockbacks 18 | . . . . . . . . . . . 13 5 . . . . . . Impact . | . . . . . . . . . . . . . . . . . . . Kinetic 17 | . . . . . . . . . . . 12 5 . . . . . . Secondary 1 | . . . . . . . . . . . 1 . . . . . . . Self-Inflicted Damage 502 | . . . . 21 . 114 . . . 22 . 14 65 . . . . 266 Shots 13 | . . . . 1 . 5 . . . 1 . . 3 . . . . 3 Rammed 7 | . 1 . . . 1 . 2 . . . 1 2 . . . . . . Targets Rammed 8 | . 1 . . . 1 . 2 1 . . 1 2 . . . . . . Kicked . | . . . . . . . . . . . . . . . . . . . Crushed 1 | . . . . . . . . 1 . . . . . . . . . . Highest Temperature 441 | . 2 . . 2 355 18 392 54 55 221 407 372 359 . 72 5 249 441 Average Temperature 115 | . 2 . . 2 144 10 135 12 19 129 172 103 184 . 29 1 73 108 Received Heat Transfer 2979 | . 12 . . 30 585 126 648 306 486 132 18 276 . . 12 90 162 96 Effects 19 | . . . . . 4 . 10 . . 1 3 . . . . . . 1 Shutdowns 2 | . . . . . . . . . . . 1 . . . . . . 1 Energy Bleed 6 | . . . . . 2 . 2 . . . 2 . . . . . . . Interference 5 | . . . . . . . 4 . . 1 . . . . . . . . Matter Decay 1 | . . . . . . . 1 . . . . . . . . . . . Short Circuit 4 | . . . . . 1 . 3 . . . . . . . . . . . Damage (minor) 1 | . . . . . 1 . . . . . . . . . . . . . Siege Activations . | . . . . . . . . . . . . . . . . . . . Robots Corrupted . | . . . . . . . . . . . . . . . . . . . Combat Hostiles . | . . . . . . . . . . . . . . . . . . . Parts Fried . | . . . . . . . . . . . . . . . . . . . Impact Corruptions . | . . . . . . . . . . . . . . . . . . . Robots Melted . | . . . . . . . . . . . . . . . . . . . Combat Hostiles . | . . . . . . . . . . . . . . . . . . . Parts Melted 6 | . . . . . . . 1 . . . . 5 . . . . . . Heat Transferred 4116 | . . . . . . . 1526 . . . . 1332 814 . 74 . 74 296 Parts Sabotaged . | . . . . . . . . . . . . . . . . . . . Parts Stolen . | . . . . . . . . . . . . . . . . . . . Parts Stripped . | . . . . . . . . . . . . . . . . . . . Power Chain Reactions . | . . . . . . . . . . . . . . . . . . . Missiles Intercepted . | . . . . . . . . . . . . . . . . . . . Alert | -11 -10 -10 -10 -9 -8 -8 -8 -7 -7 -7 -6 -5 -5 -5 -5 -5 -5 -4 ------- Run | Scr Mat Min Exi Min Mat Gar Mat Fac Sto Gar Fac Fac Was Fac Gar Fac Gar Fac Peak Influence 1072 | 5 209 81 . 125 342 613 1072 702 582 604 359 263 92 71 415 216 739 392 Initial 436 | . 3 81 . . 48 200 298 436 223 378 287 109 92 17 49 212 130 387 Average 326 | . 96 81 . 102 195 457 690 550 318 485 282 143 48 33 191 197 448 279 Maximum Alert Level 4 | . 1 . . . 1 2 4 3 2 2 1 1 . . 2 1 3 1 Low Security (%) 34 | 100 93 100 . 100 49 . . . 12 . 11 71 100 100 49 57 15 34 Level 1 33 | . 6 . . . 50 26 10 . 62 36 88 28 . . 48 42 27 65 Level 2 25 | . . . . . . 73 38 95 24 63 . . . . 2 . 52 . Level 3 6 | . . . . . . . 51 4 . . . . . . . . 3 . Level 4 . | . . . . . . . . . . . . . . . . . . . Level 5 . | . . . . . . . . . . . . . . . . . . . High Security . | . . . . . . . . . . . . . . . . . . . Max Security . | . . . . . . . . . . . . . . . . . . . Squads Dispatched 26 | . 3 . . . 3 . 3 3 6 . 1 1 . 1 . . . 5 Investigation 4 | . 2 . . . . . . 1 1 . . . . . . . . . Extermination 3 | . . . . . . . . . 1 . 1 . . . . . . 1 Reinforcement 12 | . 1 . . . . . 2 1 3 . . 1 . 1 . . . 3 Assault 2 | . . . . . . . 1 1 . . . . . . . . . . Garrison 5 | . . . . . 3 . . . 1 . . . . . . . . 1 Intercept . | . . . . . . . . . . . . . . . . . . . Construction Impeded 1 | . . . . . . . 1 . . . . . . . . . . . Haulers Reinforced 4 | . . . . . . . . . 1 . . 1 . . . . . 2 Stealth | -11 -10 -10 -10 -9 -8 -8 -8 -7 -7 -7 -6 -5 -5 -5 -5 -5 -5 -4 --------- Run | Scr Mat Min Exi Min Mat Gar Mat Fac Sto Gar Fac Fac Was Fac Gar Fac Gar Fac Distress Signals 12 | . . . . 1 1 . 5 . 3 . . 2 . . . . . . Communications Jammed . | . . . . . . . . . . . . . . . . . . . Distress Signals . | . . . . . . . . . . . . . . . . . . . Times Spotted 256 | . 5 . . 5 22 12 43 15 26 16 7 20 4 1 19 3 26 32 Peak Tracking Total 13 | . 3 . 9 3 6 4 6 5 5 7 4 8 4 2 6 3 6 13 Tactical Retreats 21 | . . . . . 3 2 1 1 . 2 . 2 . . 3 . 4 3 Traps | -11 -10 -10 -10 -9 -8 -8 -8 -7 -7 -7 -6 -5 -5 -5 -5 -5 -5 -4 ------- Run | Scr Mat Min Exi Min Mat Gar Mat Fac Sto Gar Fac Fac Was Fac Gar Fac Gar Fac Traps Triggered 17 | . . . . . . . 2 1 3 1 . 1 . . 3 . 6 . Indirectly . | . . . . . . . . . . . . . . . . . . . Trap Hack Attempts . | . . . . . . . . . . . . . . . . . . . Triggered . | . . . . . . . . . . . . . . . . . . . Disarmed . | . . . . . . . . . . . . . . . . . . . Reprogrammed . | . . . . . . . . . . . . . . . . . . . Reused . | . . . . . . . . . . . . . . . . . . . Traps Extracted . | . . . . . . . . . . . . . . . . . . . Installed . | . . . . . . . . . . . . . . . . . . . Triggered . | . . . . . . . . . . . . . . . . . . . Machines | -11 -10 -10 -10 -9 -8 -8 -8 -7 -7 -7 -6 -5 -5 -5 -5 -5 -5 -4 ---------- Run | Scr Mat Min Exi Min Mat Gar Mat Fac Sto Gar Fac Fac Was Fac Gar Fac Gar Fac Machines Disabled 19 | . . . 1 . 3 1 3 . 4 . . 1 . . 1 . 4 1 Max in Single Turn 2 | . . . 1 . 1 1 2 . 1 . . 1 . . 1 . 1 1 Garrison Relay 6 | . . . . . . 1 . . . . . . . . 1 . 4 . Machines Sabotaged . | . . . . . . . . . . . . . . . . . . . Garrisons Compromised . | . . . . . . . . . . . . . . . . . . . Overloaded Fab Kills . | . . . . . . . . . . . . . . . . . . . Fab Network Shutdowns . | . . . . . . . . . . . . . . . . . . . Hacking | -11 -10 -10 -10 -9 -8 -8 -8 -7 -7 -7 -6 -5 -5 -5 -5 -5 -5 -4 --------- Run | Scr Mat Min Exi Min Mat Gar Mat Fac Sto Gar Fac Fac Was Fac Gar Fac Gar Fac Machines Accessed 25 | . 3 . 2 . 2 . 1 . 6 . 4 2 . 1 . 2 . 2 Terminals 15 | . 2 . . . 1 . 1 . 5 . 2 1 . . . 1 . 2 Fabricators 2 | . . . . . . . . . . . 1 1 . . . . . . Repair Stations . | . . . . . . . . . . . . . . . . . . . Recycling Units 1 | . 1 . . . . . . . . . . . . . . . . . Scanalyzers 1 | . . . . . . . . . . . 1 . . . . . . . Garrison Access 4 | . . . . . 1 . . . 1 . . . . 1 . 1 . . Total Hacks 50 | . 7 . 2 . 5 . 2 . 13 . 8 5 . 1 . 3 . 4 Successful 21 | . 2 . 2 . 1 . . . 6 . 5 1 . 1 . 1 . 2 Failed 28 | . 4 . . . 4 . 2 . 7 . 3 4 . . . 2 . 2 Catastrophic 5 | . . . . . 1 . 1 . . . . 1 . . . 2 . . Database Lockouts 1 | . 1 . . . . . . . . . . . . . . . . . Manual 18 | . 9 . 1 . 3 . 2 . 3 . . . . . . . . . Terminals 35 | . 6 . . . 3 . 2 . 12 . 2 4 . . . 2 . 4 Fabricators 4 | . . . . . . . . . . . 3 1 . . . . . . Repair Stations . | . . . . . . . . . . . . . . . . . . . Recycling Units 1 | . 1 . . . . . . . . . . . . . . . . . Scanalyzers 3 | . . . . . . . . . . . 3 . . . . . . . Garrison Access 5 | . . . . . 2 . . . 1 . . . . 1 . 1 . . Terminal Hacks 11 | . 1 . 2 . . . . . 4 . 1 1 . . . . . 2 Record 1 | . . . 1 . . . . . . . . . . . . . . . Part Schematic 1 | . . . . . . . . . 1 . . . . . . . . . Robot Analysis 2 | . 1 . . . . . . . . . . 1 . . . . . . Open Door 1 | . . . . . . . . . 1 . . . . . . . . . Terminal Index 1 | . . . . . . . . . 1 . . . . . . . . . Fabricator Index 1 | . . . . . . . . . . . . . . . . . . 1 Alert Level 1 | . . . . . . . . . . . 1 . . . . . . . Unreport Threat 1 | . . . . . . . . . 1 . . . . . . . . . Hauler Manifests 1 | . . . . . . . . . . . . . . . . . . 1 EX-Prototype ID Bank 1 | . . . 1 . . . . . . . . . . . . . . . Fabricator Hacks 2 | . . . . . . . . . . . 2 . . . . . . . Build 2 | . . . . . . . . . . . 2 . . . . . . . Repair Station Hacks . | . . . . . . . . . . . . . . . . . . . Recycling Unit Hacks . | . . . . . . . . . . . . . . . . . . . Scanalyzer 2 | . . . . . . . . . . . 2 . . . . . . . Insert Component 1 | . . . . . . . . . . . 1 . . . . . . . Analyze 1 | . . . . . . . . . . . 1 . . . . . . . Garrison Access Hacks 4 | . . . . . 1 . . . 1 . . . . 1 . 1 . . Unlock Access 4 | . . . . . 1 . . . 1 . . . . 1 . 1 . . Unauthorized Hacks 2 | . 1 . . . . . . . 1 . . . . . . . . . Terminals 1 | . . . . . . . . . 1 . . . . . . . . . Botnet 1 | . . . . . . . . . 1 . . . . . . . . . Fabricators . | . . . . . . . . . . . . . . . . . . . Repair Stations . | . . . . . . . . . . . . . . . . . . . Recycling Units 1 | . 1 . . . . . . . . . . . . . . . . . Tunnel 1 | . 1 . . . . . . . . . . . . . . . . . Scanalyzers . | . . . . . . . . . . . . . . . . . . . Garrison Access . | . . . . . . . . . . . . . . . . . . . Data Cores Recovered 1 | . . . . . . . . . . . . . . . . . . 1 Used 1 | . . . . . . . . . . . . . . . . . . 1 Hacking Detections 20 | . 2 . . . 2 . 1 . 5 . 3 2 . 1 . 2 . 2 Full Trace Events 1 | . 1 . . . . . . . . . . . . . . . . . Feedback Events . | . . . . . . . . . . . . . . . . . . . Feedback Blocked . | . . . . . . . . . . . . . . . . . . . Robot Schematics Acquired . | . . . . . . . . . . . . . . . . . . . Robots Built . | . . . . . . . . . . . . . . . . . . . Matter . | . . . . . . . . . . . . . . . . . . . Time . | . . . . . . . . . . . . . . . . . . . Total Robot Build Rating . | . . . . . . . . . . . . . . . . . . . Part Schematics Acquired 1 | . . . . . . . . . 1 . . . . . . . . . Parts Built 4 | . . . . . . . . . . . 4 . . . . . . . Matter 512 | . . . . . . . . . . . 512 . . . . . . . Time 256 | . . . . . . . . . . . 256 . . . . . . . Total Part Build Rating 32 | . . . . . . . . . . . 32 . . . . . . . Parts Repaired . | . . . . . . . . . . . . . . . . . . . Time . | . . . . . . . . . . . . . . . . . . . Parts Recycled . | . . . . . . . . . . . . . . . . . . . Recycled Matter . | . . . . . . . . . . . . . . . . . . . Retrieved Matter . | . . . . . . . . . . . . . . . . . . . Retrieved Components . | . . . . . . . . . . . . . . . . . . . Parts Scanalyzed 1 | . . . . . . . . . . . 1 . . . . . . . Part Schematics Acquired . | . . . . . . . . . . . . . . . . . . . Parts Damaged . | . . . . . . . . . . . . . . . . . . . Bothacking | -11 -10 -10 -10 -9 -8 -8 -8 -7 -7 -7 -6 -5 -5 -5 -5 -5 -5 -4 ------------ Run | Scr Mat Min Exi Min Mat Gar Mat Fac Sto Gar Fac Fac Was Fac Gar Fac Gar Fac Used RIF Installer 4 | . . . . . . 1 . . . 1 . . . . 1 . 1 . Hotswap 1 | . . . . . . . . . . 1 . . . . . . . . Structural Interface 1 | . . . . . . . . . . . . . . . . . 1 . Autooverride 1 | . . . . . . . . . . . . . . . 1 . . . Robots Hacked 18 | . . . . . . . . . . . . . . . . . 14 4 Non-combat 2 | . . . . . . . . . . . . . . . . . . 2 Combat 16 | . . . . . . . . . . . . . . . . . 14 2 Autooverrided 8 | . . . . . . . . . . . . . . . . . 6 2 Robot Hacks Applied 13 | . . . . . . . . . . . . . . . . . 8 5 parse_system 3 | . . . . . . . . . . . . . . . . . 2 1 purge_threat 2 | . . . . . . . . . . . . . . . . . . 2 disarm_traps 1 | . . . . . . . . . . . . . . . . . . 1 block_reporting 1 | . . . . . . . . . . . . . . . . . . 1 spike_heat 1 | . . . . . . . . . . . . . . . . . 1 . formatsys_high 5 | . . . . . . . . . . . . . . . . . 5 . Relay Couplers Released 25 | . . . . . . 5 . . . . . . . . 4 . 16 . Machine Destruction 25 | . . . . . . 5 . . . . . . . . 4 . 16 . Attached 10 | . . . . . . 1 . . . . . . . . 4 . 2 3 Robots Rewired . | . . . . . . . . . . . . . . . . . . . Allies Hacked . | . . . . . . . . . . . . . . . . . . . Hacks Repelled . | . . . . . . . . . . . . . . . . . . . Allies | -11 -10 -10 -10 -9 -8 -8 -8 -7 -7 -7 -6 -5 -5 -5 -5 -5 -5 -4 -------- Run | Scr Mat Min Exi Min Mat Gar Mat Fac Sto Gar Fac Fac Was Fac Gar Fac Gar Fac Total Allies 13 | . . . . . . . . . . . . . . . . . 11 2 Largest Group 4 | . . . . . . . . . . . . . . . . . 4 4 Highest-Rated Group 136 | . . . . . . . . . . . . . . . . . 136 114 Highest-Rated Ally 49 | . . . . . . . . . . . . . . . . . 49 44 Total Orders . | . . . . . . . . . . . . . . . . . . . Ally Attacks 81 | . . . . . . . . . . . . . . . . . 54 27 Total Damage 1378 | . . . . . . . . . . . . . . . . . 947 431 Kills 8 | . . . . . . . . . . . . . . . . . 6 2 Allies Corrupted 1 | . . . . . . . . . . . . . . . . . . 1 Allies Melted . | . . . . . . . . . . . . . . . . . . . Intel | -11 -10 -10 -10 -9 -8 -8 -8 -7 -7 -7 -6 -5 -5 -5 -5 -5 -5 -4 ------- Run | Scr Mat Min Exi Min Mat Gar Mat Fac Sto Gar Fac Fac Was Fac Gar Fac Gar Fac Robot Analysis Total 2 | . 1 . . . . . . . . . . 1 . . . . . . Derelict Logs Recovered 1 | . . 1 . . . . . . . . . . . . . . . . Drone Launches . | . . . . . . . . . . . . . . . . . . . Drone Recoveries . | . . . . . . . . . . . . . . . . . . . Exploration | -11 -10 -10 -10 -9 -8 -8 -8 -7 -7 -7 -6 -5 -5 -5 -5 -5 -5 -4 ------------- Run | Scr Mat Min Exi Min Mat Gar Mat Fac Sto Gar Fac Fac Was Fac Gar Fac Gar Fac Turns Passed 8264 | 81 353 119 366 355 577 566 894 434 761 112 642 720 128 232 368 125 1061 370 Spaces Moved 5264 | 82 292 116 332 256 228 316 351 215 420 99 359 400 122 208 252 204 635 377 Core 209 | 61 . . . . . . . . . . . . 101 12 2 . . 33 Treads 1394 | 2 . . . . 82 316 351 215 266 . 158 . . 1 . . 3 . Legs 642 | . . . . . . . . . . . 56 . . . . . 514 72 Wheels 1992 | 19 292 116 332 256 146 . . . . . 127 400 21 195 88 . . . Hover 435 | . . . . . . . . . 154 99 18 . . . 27 . 108 29 Flight 592 | . . . . . . . . . . . . . . . 135 204 10 243 Fastest Speed 25 | 50 100 100 100 110 110 160 160 160 38 38 110 130 50 50 25 28 52 25 Average Speed 114 | 77 100 100 107 110 132 160 161 160 116 63 151 130 63 94 77 41 124 56 Slowest Speed 500 | 160 100 100 110 110 160 160 180 180 180 110 180 130 130 180 500 57 200 180 Overloaded Moves 43 | . . . . . . . . . . . . . . . . . . 43 Propulsion Burnouts . | . . . . . . . . . . . . . . . . . . . Robots Hopped 1 | . . . . . . . . . . . . . . . . . . 1 Cave-ins Triggered . | . . . . . . . . . . . . . . . . . . . Exploration Rate (%) 35 | 4 39 33 69 60 19 60 52 9 59 44 7 12 65 7 35 4 85 13 Regions Visited 18 Branch Regions 4 Pre-discovered Areas 3 | . 1 . 1 . . . . . 1 . . . . . . . . . Known Exits Taken 5 | . . . . . 1 . . 1 1 . . . . 1 . 1 . . Unknown Exits Taken 7 | 1 1 1 1 1 . . 1 . . . 1 . . . . . . . Scrap Searched 3 | . . 1 . 2 . . . . . . . . . . . . . . Spaces Dug 52 | . . . . . . . . 1 2 9 . . . 2 21 1 3 13 Terrain Destroyed 327 | . . . . 32 . 31 37 1 2 36 . . 10 3 39 2 11 123 Melee 5 | . . . . . . . . 1 2 . . . . 1 . 1 . . Projectile 11 | . . . . . . . . . . . . . . 2 . 1 8 . AOE 311 | . . . . 32 . 31 37 . . 36 . . 10 . 39 . 3 123 Terrain Rammed . | . . . . . . . . . . . . . . . . . . . Walls Destroyed . | . . . . . . . . . . . . . . . . . . . Machines Disabled . | . . . . . . . . . . . . . . . . . . . Actions | -11 -10 -10 -10 -9 -8 -8 -8 -7 -7 -7 -6 -5 -5 -5 -5 -5 -5 -4 --------- Run | Scr Mat Min Exi Min Mat Gar Mat Fac Sto Gar Fac Fac Was Fac Gar Fac Gar Fac Total 6535 | 95 317 118 337 288 340 345 500 257 581 131 416 533 147 230 365 223 828 484 Wait 179 | . . . . 5 4 2 7 9 2 4 10 83 2 4 6 . 16 25 Move 5248 | 81 291 115 331 255 228 314 350 214 420 98 358 400 121 208 251 204 634 375 Hop 1 | . . . . . . . . . . . . . . . . . . 1 Pick Up 94 | 6 4 1 . 4 6 3 14 . 17 . 10 1 1 2 6 . 16 3 Fast Attach 128 | 3 1 . . . 7 . 8 5 23 . 9 10 1 7 14 3 22 15 Attach 72 | 3 . . . . 6 4 7 . 10 3 5 1 6 2 10 1 5 9 Detach 16 | . . . . . . . . . 3 2 1 1 . . 6 1 1 1 Swap 37 | 1 . 1 1 2 2 2 5 2 5 3 . . . . 1 . 9 3 Drop 108 | . 1 1 1 . 4 . 18 4 40 . 3 6 2 . 6 . 13 9 Fire 464 | 1 19 . 4 22 82 20 89 19 54 8 18 29 14 3 27 4 32 19 Melee 99 | . . . . . . . . 3 7 . 1 . . 4 9 10 41 24 Ram 3 | . 1 . . . . . . . . . . 2 . . . . . . Kick . | . . . . . . . . . . . . . . . . . . . Crush 5 | . . . . . 1 . 2 1 . . 1 . . . . . . . Escape Stasis 80 | . . . . . . . . . . 13 . . . . 29 . 38 . Rewire 1 | . . . . . . . . . . . . . . . . . 1 . Trap . | . . . . . . . . . . . . . . . . . . . Miscellaneous . | . . . . . . . . . . . . . . . . . . . Route ------- -11/Scrapyard -10/Materials -10/Mines (discovered 2 exits: [*Mat] / *Exi) -10/Exiles -9/Mines -8/Materials -8/Garrison (discovered 2 exits: *Mat x2) -8/Materials -7/Factory -7/Storage -7/Garrison -6/Factory -5/Factory -5/Waste -5/Factory -5/Garrison -5/Factory -5/Garrison (discovered 3 exits: *Fac x3) -4/Factory History --------- Turn | Location | Event 10 | -11/Scrapyard | Discovered new exit (range 12) 82 | -11/Scrapyard | Entered Materials 316 | -10/Materials | Build established: Mutant 339 | -10/Materials | Discovered new exit (range 11) 358 | -10/Materials | Central database locked down 435 | -10/Materials | Entered Mines 446 | -10/Mines | Discovered new exit (range 10) 513 | -10/Mines | Received a Rocket Launcher from a helpful Derelict 550 | -10/Mines | Deemed a non-threat by the Exiles lab entrance 550 | -10/Mines | Discovered new exit (range 5) 554 | -10/Mines | Entered Exiles 579 | -10/Exiles | Met 8R-AWN 595 | -10/Exiles | Met EX-HEX 647 | -10/Exiles | Met EX-DEC 668 | -10/Exiles | Learned location of Zion (-7) 704 | -10/Exiles | Discovered new exit (range 15) 760 | -10/Exiles | Met EX-BIN 775 | -10/Exiles | Aligned with FarCom system 776 | -10/Exiles | Given EX-Vault access code 802 | -10/Exiles | Opened EX-Vault 825 | -10/Exiles | Warned to stay clear of 0b10 Research branches 895 | -10/Exiles | Attacked by the Exiles 920 | -10/Exiles | Entered Mines 980 | -9/Mines | Found a hidden stash of uninstalled traps 1167 | -9/Mines | Discovered new exit (range 9) 1275 | -9/Mines | Entered Materials 1275 | -8/Materials | Evolved 4 slots: Propulsion x2, Utility x1, Weapon x1 1449 | -8/Materials | Garrison activated, responded to threat 1632 | -8/Materials | Lost 3 parts (1p1n1w) 1687 | -8/Materials | Garrison activated, responded to threat 1852 | -8/Materials | Identified exit to Garrison 1852 | -8/Materials | Entered Garrison 1998 | -8/Garrison | Triggered checkpoint 2073 | -8/Garrison | Discovered new exit (range 11) 2089 | -8/Garrison | Attempted to access garrison exit controls, blocked by remote lockdown 2164 | -8/Garrison | Triggered checkpoint 2226 | -8/Garrison | Discovered new exit (range 12) 2256 | -8/Garrison | Installed Relay Interface Framework 2308 | -8/Garrison | Triggered checkpoint 2350 | -8/Garrison | Garrison Relay disabled 2418 | -8/Garrison | Entered Materials 2652 | -8/Materials | Build established: Tank 2818 | -8/Materials | First assault squad dispatched 3047 | -8/Materials | Core integrity fell below 50% 3272 | -8/Materials | Discovered new exit (range 3) 3312 | -8/Materials | Entered Factory 3312 | -7/Factory | Evolved 2 slots: Utility x2 3313 | -7/Factory | Identified exit to Storage 3712 | -7/Factory | First assault squad dispatched 3746 | -7/Factory | Entered Storage 3786 | -7/Storage | Build established: Scavenger-Tank 3846 | -7/Storage | Learned location of Armory (-4) 4088 | -7/Storage | Found Prototype Launcher 4088 | -7/Storage | Identified Rocket Array 4101 | -7/Storage | Found Rocket Array 4103 | -7/Storage | Found Rocket Array 4118 | -7/Storage | Found Rocket Array 4496 | -7/Storage | Garrison activated, responded to threat 4507 | -7/Storage | Identified exit to Garrison 4507 | -7/Storage | Entered Garrison 4509 | -7/Garrison | Expanded RIF knowledge: Hotswap 4548 | -7/Garrison | Triggered checkpoint 4588 | -7/Garrison | Destroyed 9 combat bots 4604 | -7/Garrison | Core integrity fell below 50% 4609 | -7/Garrison | Discovered new exit (range 10) 4619 | -7/Garrison | Entered Factory 4619 | -6/Factory | Evolved 2 slots: Propulsion x2 4622 | -6/Factory | Lost 9 parts (1p5n1u2w) 4967 | -6/Factory | Fabricated Linear Accelerator? 5006 | -6/Factory | Build established: Hauler-Gunner 5062 | -6/Factory | Discovered new exit (range 16) 5143 | -6/Factory | Fabricated Linear Accelerator (x2) 5261 | -6/Factory | Entered another Factory area 5261 | -5/Factory | Evolved 2 slots: Power x1, Utility x1 5395 | -5/Factory | Spotted B-75 Beast 5475 | -5/Factory | Destroyed B-75 Beast 5867 | -5/Factory | Build established: Tank 5977 | -5/Factory | Discovered new exit (range 6) 5981 | -5/Factory | Sucked down chute 5981 | -5/Factory | Entered Waste 5998 | -5/Waste | Spotted C-40 Crusher 6000 | -5/Waste | Spotted C-40 Crusher 6028 | -5/Waste | Crushed by Compactor (1 part destroyed) 6031 | -5/Waste | Crushed by Compactor (1 part destroyed, 2 dropped) 6034 | -5/Waste | Crushed by Compactor (1 part destroyed, 2 dropped) 6037 | -5/Waste | Crushed by Compactor (1 part destroyed, 2 dropped) 6040 | -5/Waste | Crushed by Compactor (1 part destroyed) 6043 | -5/Waste | Crushed by Compactor (1 part destroyed, 1 dropped) 6046 | -5/Waste | Crushed by Compactor (1 part destroyed) 6048 | -5/Waste | Spotted C-40 Crusher 6049 | -5/Waste | Crushed by Compactor (0 parts destroyed, 1 dropped) 6052 | -5/Waste | Crushed by Compactor (0 parts destroyed, 1 dropped) 6061 | -5/Waste | Spotted C-40 Crusher 6069 | -5/Waste | Spotted C-40 Crusher 6077 | -5/Waste | Lost 10 parts (1p4u5w) 6084 | -5/Waste | Discovered new exit (range 13) 6109 | -5/Waste | Entered Factory 6341 | -5/Factory | Identified exit to Garrison 6341 | -5/Factory | Entered Garrison 6358 | -5/Garrison | Triggered checkpoint 6397 | -5/Garrison | Garrison Relay disabled 6455 | -5/Garrison | Spotted B-75 Beast 6457 | -5/Garrison | Triggered checkpoint 6552 | -5/Garrison | Lost 7 parts (1p3n1u2w) 6687 | -5/Garrison | Spotted B-75 Beast 6693 | -5/Garrison | Discovered new exit (range 8) 6696 | -5/Garrison | Expanded RIF knowledge: Autooverride 6709 | -5/Garrison | Entered Factory 6804 | -5/Factory | Lost 7 parts (1p4n1u1w) 6834 | -5/Factory | Identified exit to Garrison 6834 | -5/Factory | Entered Garrison 6874 | -5/Garrison | Core integrity fell below 50% 6988 | -5/Garrison | Triggered checkpoint 7014 | -5/Garrison | Garrison Relay disabled 7036 | -5/Garrison | Build established: Scavenger-Mutant 7209 | -5/Garrison | Lost 6 parts (2n2u2w) 7242 | -5/Garrison | System corruption reached 10% 7294 | -5/Garrison | Triggered checkpoint 7339 | -5/Garrison | Discovered new exit (range 10) 7364 | -5/Garrison | Triggered checkpoint 7401 | -5/Garrison | Garrison Relay disabled 7470 | -5/Garrison | Triggered checkpoint 7516 | -5/Garrison | Triggered checkpoint 7536 | -5/Garrison | Garrison Relay disabled 7601 | -5/Garrison | Discovered new exit (range 15) 7645 | -5/Garrison | Expanded RIF knowledge: Structural Interface 7792 | -5/Garrison | Triggered checkpoint 7855 | -5/Garrison | Garrison Relay disabled 7881 | -5/Garrison | Discovered new exit (range 8) 7895 | -5/Garrison | Entered Factory 7895 | -4/Factory | Accompanied by 3 allies 7895 | -4/Factory | Evolved 2 slots: Utility x2 8085 | -4/Factory | Garrison activated, responded to threat 8225 | -4/Factory | Core integrity fell below 50% 8240 | -4/Factory | Core integrity fell below 20% 8257 | -4/Factory | Lost 22 parts (2p8n5u7w) 8265 | -4/Factory | Destroyed by G-67 Veteran with Plasma Rifle Last Messages --------------- 08240_ System corrupted: Matter fused (-7). 08240_ Slug penetrates Wall. 08241_ Penetrated by Slug. 08244_ Slug penetrates A-15 Conveyor. 08244_ A-15 Conveyor suffers critical hit. 08244_ A-15 Conveyor destroyed. 08245_ K-01 Serf collects debris. 08245_ U-05 Engineer lays Concrete. 08246_ Slug penetrates Wall. 08246_ Acquired Prototype Flight Unit. 08246_ Identified Cld. Cesium-ion Thruster. 08246_ Malfunction: Heat surge (+282). 08248_ Acquired Cld. Cesium-ion Thruster. 08249_ K-01 Serf collects debris. 08250_ Penetrated by Slug. 08254_ Acquired Imp. Medium Armor Plating. 08256_ Subcomponent Replicator disabled. 08257_ Critical hit. 08257_ Slug penetrates Wall. 08257_ Slug penetrates Subcomponent Replicator. Map ----- +----------------------------------------------------+ | ???????????????? "" "" %] | | ???????????????? "" ! | | ???????????????"?""" " ^ | | ??????????????"" """ "" ###/################## | | ???????????? """ """ """ # ] #??????????? | | ??????????? # #???????????? | | ??????????? # #???????????? | | ??????????? # #???????????? | | ??????????? # """ **!#???????????? | | ??????????? # "Y *!!#???????????? | | ????????????""########### ## """ *! #???????????? | | ????????????????????????# ## #???????????? | | ????????????????????????# ### ########???????????? | | ????????????????????????# #?##???????????????????? | | ????????????????????????# #??????????????????????? | | ????????????????????????# #??????????????????????? | | ????????????????????????# #??????????????????????? | | ????????????????????????# #??????????????????????? | | ????????????????????????# #??????????????????????? | | ????????????????????????# #??????????????????????? | | ????????????????????????# #??????????????????????? | | ????????????????????????# #??????????????????????? | | ????????????????????????# #??????????????????????? | | ?????????????######+##### #####??????????????????? | | ????????? g k #??????????????????? | | ????????? @ #??????????????????? | | ????????? g g +??????????????????? | | ?????????? g #??????????????????? | | ?????????? g #??????????????????? | | ???????????###### ####+##+#??????????????????? | | ????????????????# ???????????????????????????? | | ????????????????# ????????????????????????????? | | ????????????????# ????????????????????????????? | | ????????????????# ?????????????????????????????? | | ????????????????# ?????????????????????????????? | | ????????????????# ??????????????????????????????? | | ????????????????# ??????????????????????????????? | | ????????????????? ???????????????????????????????? | | ?????????????????????????????????????????????????? | | ?????????????????????????????????????????????????? | | ?????????????????????????????????????????????????? | | ?????????????????????????????????????????????????? | | ?????????????????????????????????????????????????? | | ?????????????????????????????????????????????????? | | ?????????????????????????????????????????????????? | | ?????????????????????????????????????????????????? | | ?????????????????????????????????????????????????? | | ?????????????????????????????????????????????????? | | ?????????????????????????????????????????????????? | | ?????????????????????????????????????????????????? | +----------------------------------------------------+ Best States ------------- Heat Dissipation 85 Energy Generation 33 Energy Capacity 900 Matter Stores 300 Matter Capacity 300 Sight Range 16 Terrain Scan Density 10 Armor Coverage 825 Resistance: KI 20 Power Shielding 66 Melee Speed Boost 50 Phase Shifting 5 Evasion (%) 65 Launcher Accuracy 40 Recoil Reduction 4 Offensive Hacking 10 Defensive Hacking 10 Relay Coupler Types 128 Relay Coupler Value 4 Item Schematics ----------------- Power Amplifier | -7/Storage | Hacked Robot Schematics ------------------ None Fabricated ------------ Linear Accelerator | x2 | -6/Factory | Preloaded Linear Accelerator | x2 | -6/Factory | Preloaded Alien Tech Used ----------------- None Achievements -------------- None Challenges ------------ None Game ------ Seed ReactiveElectronMatter Manual? 0 Play Time 01:09:37 Cumulative 425.7 hours Start 2021.06.04 @ 22:59:20 End 2021.06.05 @ 00:08:51 Sessions 1 Manual Loads 0 Difficulty Rogue Special Mode None Game No. 325 Rogue 318 Adventurer 0 Explorer 7 Win Type - Total 18 Types 8/1/9/0/0/0/0/0/0 Lore% 81 Gallery% 94 Achievement% 77 Wizard Run 0 Options --------- ASCII 0 Keyboard 0 Movement Numpad Keybinds 0 Fullscreen 1 Font 18/X11Bold Map View 76x50 Tactical HUD 1 Map Filters NONE Filters NONE Steam 1 RUN: 5413fcb9-c5ae-4c41-bfd4-f56a9081c9e8